bitfinex/quotes_BTCUSD_20250512
["timestamp","ask_amount","ask_price","bid_price","bid_amount"]
[1747024514369,0.25616585,103900.0,103890.0,0.54330946]
[1747024514589,0.25616585,103900.0,103890.0,0.62031351]
[1747024514805,0.24654177,103900.0,103890.0,0.311508]
[1747024515081,0.24654177,103900.0,103890.0,0.17915394]
[1747024515307,0.24654177,103900.0,103890.0,0.46870842]
[1747024515531,0.24654177,103900.0,103890.0,0.46870851]
[1747024515778,0.24654177,103900.0,103890.0,0.4783337]
[1747024516007,0.24654177,103900.0,103890.0,0.46870851]
[1747024516669,0.24654177,103900.0,103890.0,0.4783337]
[1747024516870,0.25616576,103900.0,103890.0,0.4783337]
[1747024517100,0.25616576,103900.0,103890.0,0.4879588]
[1747024519678,0.24654122,103900.0,103890.0,0.48795824]
[1747024520091,0.24654122,103900.0,103890.0,0.46870786]
[1747024520092,0.0348,103900.0,103890.0,0.46870786]
[1747024520294,0.0185,103900.0,103890.0,0.70050867]
[1747024520516,0.0281238,103900.0,103890.0,0.70050867]
[1747024521368,0.0185,103900.0,103890.0,0.70050867]
[1747024522476,0.002,103900.0,103890.0,1.04050867]
[1747024522728,0.002,103900.0,103890.0,1.08555844]
[1747024522959,0.002,103900.0,103890.0,1.29653274]
[1747024523634,0.002,103900.0,103890.0,1.69653274]
[1747024524940,0.002,103900.0,103890.0,1.81125274]
[1747024525386,0.002,103900.0,103890.0,1.68469844]
[1747024525582,0.002,103900.0,103890.0,1.69989844]
[1747024528098,0.002,103900.0,103890.0,1.68469844]
[1747024529268,0.002,103900.0,103890.0,1.56997844]
[1747024529486,0.0338,103900.0,103890.0,1.56997844]
[1747024530390,0.0338,103900.0,103890.0,1.32979415]
[1747024530579,0.0338,103900.0,103890.0,1.35232205]
[1747024530811,0.0338,103900.0,103890.0,3.76311005]
[1747024531362,0.002,103900.0,103890.0,3.76311005]
[1747024533361,0.002,103900.0,103890.0,3.82086344]
[1747024535096,0.002,103900.0,103890.0,2.74399464]
[1747024535259,0.0333,103900.0,103890.0,2.54198844]
[1747024535740,0.002,103900.0,103890.0,2.54198844]
[1747024537118,0.002,103900.0,103890.0,2.55698844]
[1747024537873,0.002,103900.0,103890.0,2.54198844]
[1747024538096,0.002,103900.0,103890.0,2.16348796]
[1747024538315,0.018,103900.0,103890.0,2.18273797]
[1747024538523,0.018,103900.0,103890.0,2.20198844]
[1747024538752,0.002,103900.0,103890.0,2.20198844]
[1747024540141,0.002,103900.0,103890.0,2.54198844]
[1747024540901,0.002,103900.0,103890.0,2.63784274]
[1747024541118,0.002,103900.0,103890.0,2.78300274]
[1747024542236,0.002485,103910.0,103900.0,0.32439652]
[1747024542464,0.002485,103910.0,103900.0,2.73518452]
[1747024543135,0.002485,103910.0,103900.0,3.13518452]
[1747024543576,0.005485,103910.0,103900.0,3.13518452]
[1747024543802,0.005485,103910.0,103900.0,3.24633882]
[1747024544668,0.007485,103910.0,103900.0,3.24633882]
[1747024544895,0.004485,103910.0,103900.0,3.24633882]
[1747024545133,0.002485,103910.0,103900.0,3.24633882]
[1747024546353,0.003485,103910.0,103900.0,3.24633882]
[1747024547293,0.003485,103910.0,103900.0,3.26633882]
[1747024549224,0.003485,103910.0,103900.0,3.25103882]
[1747024550111,0.003485,103910.0,103900.0,3.02886292]
[1747024550329,0.003485,103910.0,103900.0,3.23543882]
[1747024550959,0.035685,103910.0,103900.0,3.13958452]
[1747024551177,0.035685,103910.0,103900.0,2.53674152]
[1747024556244,0.13113276,103910.0,103900.0,2.26169452]
[1747024556465,0.12150942,103910.0,103900.0,2.00612552]
[1747024556885,0.13113266,103910.0,103900.0,2.00612552]
[1747024557121,0.12150942,103910.0,103900.0,2.00612552]
[1747024557319,0.11188636,103910.0,103900.0,2.00612552]
[1747024557543,0.12150942,103910.0,103900.0,2.00612552]
[1747024558169,0.12150942,103910.0,103900.0,1.78394962]
[1747024558359,0.12150942,103910.0,103900.0,2.00612552]
[1747024559442,0.12150942,103910.0,103900.0,2.33465652]
[1747024559624,0.12150933,103910.0,103900.0,2.32269152]
[1747024560895,0.11188636,103910.0,103900.0,2.32269152]
[1747024561051,0.035685,103910.0,103900.0,2.32269152]
[1747024563731,0.035685,103910.0,103900.0,2.20825152]
[1747024564959,0.035685,103910.0,103900.0,1.7216309]
[1747024565162,0.035685,103910.0,103900.0,1.80825152]
[1747024566112,0.035685,103910.0,103900.0,2.20825152]
[1747024566294,0.035685,103910.0,103900.0,2.02558584]
[1747024567397,0.05493102,103910.0,103900.0,1.84042352]
[1747024567606,0.04530787,103910.0,103900.0,1.54391452]
[1747024568035,0.035685,103910.0,103900.0,1.54391452]
[1747024568686,0.04530797,103910.0,103900.0,1.54391452]
[1747024568822,0.035685,103910.0,103900.0,1.54391452]
[1747024569912,0.003485,103910.0,103900.0,1.54391452]
[1747024570130,0.019085,103910.0,103900.0,1.54391452]
[1747024570351,0.034385,103910.0,103900.0,1.54391452]
[1747024573586,0.034385,103910.0,103900.0,1.32173862]
[1747024573874,0.034385,103910.0,103900.0,1.54391452]
[1747024579400,0.034385,103910.0,103900.0,1.61321984]
[1747024581674,0.034385,103910.0,103900.0,1.27321984]
[1747024582722,0.003485,103910.0,103900.0,1.51481475]
[1747024583152,0.003485,103910.0,103900.0,1.36907414]
[1747024583783,0.003485,103910.0,103900.0,1.70907414]
[1747024585103,0.11020136,103930.0,103920.0,0.08660395]
[1747024585318,0.11024983,103930.0,103920.0,3.13079748]
[1747024585542,0.11024983,103930.0,103920.0,3.12887317]
[1747024585543,0.03404847,103930.0,103920.0,3.12887317]
[1747024585763,0.03404847,103930.0,103920.0,3.52887317]
[1747024586410,0.02154847,103930.0,103920.0,3.52987317]
[1747024586615,0.02554847,103930.0,103920.0,3.53087317]
[1747024587413,0.04164847,103930.0,103920.0,3.68333671]
[1747024591457,0.04164847,103930.0,103920.0,3.46136433]
[1747024593867,0.04164847,103930.0,103920.0,3.68333671]
[1747024594608,0.04164847,103930.0,103920.0,3.46136433]
[1747024596672,0.04164847,103930.0,103920.0,3.68333671]
[1747024602574,0.04164847,103930.0,103920.0,3.68317354]
[1747024606512,0.01004847,103930.0,103920.0,3.68317354]
[1747024607340,0.00604847,103930.0,103920.0,3.68217354]
[1747024607567,0.00204847,103930.0,103920.0,3.68117354]
[1747024607961,0.00304847,103930.0,103920.0,3.68117354]
[1747024608202,0.01904847,103930.0,103920.0,3.68117354]
[1747024608523,0.02004847,103930.0,103920.0,3.68117354]
[1747024609159,0.00404847,103930.0,103920.0,3.77702784]
[1747024609379,0.00404847,103930.0,103920.0,3.62439792]
[1747024609580,0.03514847,103930.0,103920.0,3.62439792]
[1747024610127,0.03514847,103930.0,103920.0,3.73739792]
[1747024610978,0.04476959,103930.0,103920.0,3.64154362]
[1747024611161,0.04476959,103930.0,103920.0,2.83317462]
[1747024612118,0.03514847,103930.0,103920.0,2.84317462]
[1747024612318,0.04476949,103930.0,103920.0,2.84317462]
[1747024612517,0.03514847,103930.0,103920.0,2.83317462]
[1747024612752,0.04476968,103930.0,103920.0,2.83317462]
[1747024612945,0.04476959,103930.0,103920.0,2.83317462]
[1747024613157,0.03514847,103930.0,103920.0,2.83317462]
[1747024615109,0.03514847,103930.0,103920.0,2.72017462]
[1747024619482,0.04476949,103930.0,103920.0,2.72017462]
[1747024619830,0.03514847,103930.0,103920.0,2.72017462]
[1747024623718,0.03514847,103930.0,103920.0,2.56239904]
[1747024623952,0.03514847,103930.0,103920.0,2.62013576]
[1747024624790,0.03514847,103930.0,103920.0,2.64900299]
[1747024634476,0.00404847,103930.0,103920.0,2.64900299]
[1747024635616,0.00404847,103930.0,103920.0,2.76200299]
[1747024635847,0.00404847,103930.0,103920.0,2.90766041]
[1747024636037,0.00404847,103930.0,103920.0,3.01851471]
[1747024636191,0.00404847,103930.0,103920.0,3.03451471]
[1747024636860,0.00404847,103930.0,103920.0,3.01851471]
[1747024637107,0.00404847,103930.0,103920.0,3.02351471]
[1747024639713,0.00404847,103930.0,103920.0,2.87785729]
[1747024640338,0.00404847,103930.0,103920.0,2.90671629]
[1747024640738,0.01954847,103930.0,103920.0,2.90671629]
[1747024640999,0.03494847,103930.0,103920.0,2.90671629]
[1747024645687,0.03494847,103930.0,103920.0,2.91076131]
[1747024649906,0.0315,103940.0,103930.0,0.42659562]
[1747024650122,0.0315,103940.0,103930.0,3.1324819]
[1747024650795,0.0315,103940.0,103930.0,3.5324819]
[1747024652439,0.0365,103940.0,103930.0,3.5324819]
[1747024653685,0.0365,103940.0,103930.0,3.38682448]
[1747024654940,0.04612019,103940.0,103930.0,2.63700448]
[1747024655140,0.0461201,103940.0,103930.0,2.60926648]
[1747024655352,0.0365,103940.0,103930.0,2.60926648]
[1747024655979,0.04612028,103940.0,103930.0,2.60926648]
[1747024656183,0.04612028,103940.0,103930.0,2.63389458]
[1747024657718,0.0365,103940.0,103930.0,2.63389458]
[1747024657923,0.04612019,103940.0,103930.0,2.63389458]
[1747024658993,0.24815926,103940.0,103930.0,2.22427337]
[1747024659223,0.34401422,103940.0,103930.0,0.02841154]
[1747024659431,0.34401422,103940.0,103930.0,0.29090154]
[1747024659692,0.45685422,103940.0,103930.0,0.13118854]
[1747024659912,0.45685422,103940.0,103930.0,0.47118854]
[1747024661283,0.45685422,103940.0,103930.0,0.4808104]
[1747024661490,0.45685422,103940.0,103930.0,0.62646782]
[1747024661717,0.44723375,103940.0,103930.0,0.61684596]
[1747024662398,0.44723375,103940.0,103930.0,0.62646782]
[1747024662617,0.44723375,103940.0,103930.0,0.63608958]
[1747024662790,0.44723375,103940.0,103930.0,0.69382074]
[1747024662987,0.44723375,103940.0,103930.0,0.70344232]
[1747024666944,0.44723375,103940.0,103930.0,0.71306381]
[1747024667157,0.35363515,103940.0,103930.0,0.7226852]
[1747024667405,0.34401422,103940.0,103930.0,0.7226852]
[1747024667610,0.35363506,103940.0,103930.0,0.72268455]
[1747024668235,0.35363506,103940.0,103930.0,0.71306334]
[1747024668466,0.36325599,103940.0,103930.0,0.72268464]
[1747024668661,0.35363552,103940.0,103930.0,0.54816304]
[1747024668891,0.35363552,103940.0,103930.0,0.70344204]
[1747024670276,0.35363552,103940.0,103930.0,0.71306343]
[1747024671764,0.16121571,103940.0,103930.0,0.72268418]
[1747024673779,0.17083664,103940.0,103930.0,0.72268418]
[1747024673987,0.16121571,103940.0,103930.0,0.72268418]
[1747024674551,0.17083655,103940.0,103930.0,0.72268418]
[1747024674790,0.18045748,103940.0,103930.0,0.71306297]
[1747024675409,0.18045748,103940.0,103930.0,0.72268418]
[1747024676016,0.36325599,103940.0,103930.0,0.70344167]
[1747024676287,0.36325599,103940.0,103930.0,0.71306297]
[1747024676660,0.36325599,103940.0,103930.0,0.69382028]
[1747024677001,0.35363552,103940.0,103930.0,0.59104328]
[1747024677210,0.35363552,103940.0,103930.0,0.60066467]
[1747024677594,0.35363552,103940.0,103930.0,0.73379867]
[1747024678819,0.35363552,103940.0,103930.0,0.74341997]
[1747024679036,0.35363552,103940.0,103930.0,0.72417728]
[1747024679402,0.35363552,103940.0,103930.0,0.73379867]
[1747024680055,0.34401477,103940.0,103930.0,0.71455579]
[1747024680275,0.34401477,103940.0,103930.0,0.72417737]
[1747024680497,0.34401477,103940.0,103930.0,0.73379886]
[1747024681855,0.34401477,103940.0,103930.0,0.58814144]
[1747024682107,0.34401477,103940.0,103930.0,0.73379886]
[1747024684682,0.34401477,103940.0,103930.0,0.68940398]
[1747024684882,0.34401477,103940.0,103930.0,0.70864723]
[1747024685285,0.34401477,103940.0,103930.0,0.71826862]
[1747024685530,0.34401477,103940.0,103930.0,0.62205096]
[1747024685761,0.34401477,103940.0,103930.0,0.49870454]
[1747024687029,0.34401477,103940.0,103930.0,0.36841154]
[1747024688793,0.35075899,103940.0,103930.0,0.36841154]
[1747024688960,0.36529984,103940.0,103930.0,0.36841154]
[1747024691050,0.47813984,103940.0,103930.0,0.36841154]
[1747024693882,0.47139562,103940.0,103930.0,0.36841154]
[1747024694738,0.47813381,103940.0,103930.0,0.36841154]
[1747024696164,0.47139562,103940.0,103930.0,0.36841154]
[1747024696600,0.25477486,103940.0,103930.0,0.58142188]
[1747024696815,0.46643459,103940.0,103930.0,1.97842337]
[1747024697009,0.46643459,103940.0,103930.0,1.47983676]
[1747024697213,0.46643459,103940.0,103930.0,1.40634676]
[1747024697530,0.28363673,103940.0,103930.0,1.33723597]
[1747024697896,0.29325766,103940.0,103930.0,1.34685727]
[1747024698129,0.12009495,103940.0,103930.0,1.34685727]
[1747024698342,0.13933617,103940.0,103930.0,1.34685727]
[1747024699562,0.1489571,103940.0,103930.0,1.34685727]
[1747024699773,0.1654571,103940.0,103930.0,1.34685727]
[1747024700110,0.1810571,103940.0,103930.0,1.34685727]
[1747024700938,0.15583617,103940.0,103930.0,1.34685727]
[1747024701365,0.1654571,103940.0,103930.0,1.34685727]
[1747024701580,0.36385552,103940.0,103930.0,1.32761476]
[1747024702020,0.36385552,103940.0,103930.0,1.72761476]
[1747024702828,0.36385552,103940.0,103930.0,1.32761476]
[1747024705463,0.14621589,103940.0,103930.0,1.33723597]
[1747024705675,0.13933673,103940.0,103930.0,1.33723597]
[1747024707186,0.13933673,103940.0,103930.0,0.96882443]
[1747024707662,0.13933673,103940.0,103930.0,0.99086958]
[1747024709057,0.13933673,103940.0,103930.0,1.33086958]
[1747024709474,0.12971589,103940.0,103930.0,1.33086958]
[1747024710002,0.12971533,103940.0,103930.0,1.33086958]
[1747024710198,0.12971533,103940.0,103930.0,1.73086958]
[1747024710380,0.12009477,103940.0,103930.0,1.73086958]
[1747024710577,0.12971533,103940.0,103930.0,1.73086958]
[1747024710775,0.1104744,103940.0,103930.0,1.73086958]
[1747024710967,0.12971515,103940.0,103930.0,1.73086958]
[1747024711474,0.02424038,103940.0,103930.0,1.73086958]
[1747024712096,0.03386075,103940.0,103930.0,1.73086958]
[1747024712884,0.0434814,103940.0,103930.0,1.73086958]
[1747024713121,0.04348131,103940.0,103930.0,1.73086958]
[1747024713320,0.04348122,103940.0,103930.0,1.73086958]
[1747024713557,0.03386075,103940.0,103930.0,1.73086958]
[1747024714215,0.005,103940.0,103930.0,1.73086958]
[1747024714417,0.005,103940.0,103930.0,1.74746958]
[1747024714630,0.005,103940.0,103930.0,1.76286958]
[1747024715850,0.005,103940.0,103930.0,1.36286958]
[1747024716403,0.005,103940.0,103930.0,1.74746958]
[1747024717684,0.005,103940.0,103930.0,1.34746958]
[1747024718191,0.005,103940.0,103930.0,1.74746958]
[1747024720483,0.005,103940.0,103930.0,1.908827]
[1747024720751,0.005,103940.0,103930.0,1.76316958]
[1747024721213,0.0146201,103940.0,103930.0,1.74746958]
[1747024721691,0.005,103940.0,103930.0,1.60181216]
[1747024721927,0.005,103940.0,103930.0,1.74330859]
[1747024722155,0.005,103940.0,103930.0,1.73086958]
[1747024723873,0.005,103940.0,103930.0,1.907127]
[1747024724118,0.005,103940.0,103930.0,1.72452616]
[1747024724352,0.005,103940.0,103930.0,1.7533908]
[1747024724810,0.005,103940.0,103930.0,1.7683908]
[1747024726053,0.002,103940.0,103930.0,1.7683908]
[1747024726758,0.12903989,103950.0,103940.0,0.36886168]
[1747024726970,0.12903989,103950.0,103940.0,2.98995952]
[1747024727606,0.12903989,103950.0,103940.0,3.37689913]
[1747024727821,0.12903989,103950.0,103940.0,2.68765213]
[1747024728033,0.13303989,103950.0,103940.0,2.68765213]
[1747024728244,0.13303989,103950.0,103940.0,2.25166513]
[1747024728708,0.12342053,103950.0,103940.0,2.65166513]
[1747024728937,0.0376,103950.0,103940.0,2.65166513]
[1747024729157,0.006,103950.0,103940.0,2.65166513]
[1747024732443,0.038,103950.0,103940.0,2.65166513]
[1747024736251,0.04761926,103950.0,103940.0,2.25166513]
[1747024736451,0.05723871,103950.0,103940.0,2.25166513]
[1747024738143,0.06685834,103950.0,103940.0,2.25166513]
[1747024738376,0.06685834,103950.0,103940.0,1.31651371]
[1747024738815,0.06685834,103950.0,103940.0,1.46217113]
[1747024739019,0.06685834,103950.0,103940.0,1.31651371]
[1747024740232,0.07647816,103950.0,103940.0,1.71651371]
[1747024740434,0.06685834,103950.0,103940.0,1.31651371]
[1747024740835,0.07647816,103950.0,103940.0,1.31651371]
[1747024741028,0.07647816,103950.0,103940.0,1.71651371]
[1747024741419,0.06685834,103950.0,103940.0,1.71651371]
[1747024742487,0.26887835,103950.0,103940.0,1.70689343]
[1747024742715,0.07647816,103950.0,103940.0,1.71651371]
[1747024745559,0.07647816,103950.0,103940.0,1.86217113]
[1747024746778,0.06685834,103950.0,103940.0,1.86217113]
[1747024747179,0.07647816,103950.0,103940.0,1.86217113]
[1747024748042,0.07647816,103950.0,103940.0,1.46217113]
[1747024748450,0.06685834,103950.0,103940.0,1.46217113]
[1747024748868,0.05723871,103950.0,103940.0,1.46217113]
[1747024749075,0.06685825,103950.0,103940.0,1.46217113]
[1747024749650,0.07647798,103950.0,103940.0,1.46217113]
[1747024750072,0.06685825,103950.0,103940.0,1.46217113]
[1747024750883,0.06685834,103950.0,103940.0,1.46217113]
[1747024752209,0.06685825,103950.0,103940.0,1.86217113]
[1747024752705,0.05723871,103950.0,103940.0,1.86217113]
[1747024754099,0.06685834,103950.0,103940.0,1.86217113]
[1747024754539,0.05723871,103950.0,103940.0,1.86217113]
[1747024755554,0.04761926,103950.0,103940.0,1.86217113]
[1747024755984,0.006,103950.0,103940.0,1.86217113]
[1747024758239,0.006,103950.0,103940.0,1.87727113]
[1747024758450,0.006,103950.0,103940.0,1.86217113]
[1747024759391,0.038,103950.0,103940.0,1.86217113]
[1747024759821,0.06685844,103950.0,103940.0,1.86217113]
[1747024760032,0.07647807,103950.0,103940.0,1.71651371]
[1747024760239,0.08609798,103950.0,103940.0,1.71651371]
[1747024760887,0.25925992,103950.0,103940.0,1.10755703]
[1747024761099,0.25925992,103950.0,103940.0,1.12679861]
[1747024761721,0.25925992,103950.0,103940.0,1.1267988]
[1747024761943,0.3454944,103950.0,103940.0,1.01305042]
[1747024762170,0.3454944,103950.0,103940.0,1.05156162]
[1747024762379,0.3454944,103950.0,103940.0,0.9059042]
[1747024762587,0.3454944,103950.0,103940.0,1.05156162]
[1747024764624,0.3454944,103950.0,103940.0,1.07080283]
[1747024765051,0.3454944,103950.0,103940.0,1.06118227]
[1747024765450,0.3454944,103950.0,103940.0,1.07080283]
[1747024766045,0.33587449,103950.0,103940.0,0.462117]
[1747024766256,0.24266,103940.0,103930.0,0.43901949]
[1747024766518,0.24266,103940.0,103930.0,0.92979134]
[1747024766714,0.24266,103940.0,103930.0,1.07544876]
[1747024766932,0.24266,103940.0,103930.0,1.08507025]
[1747024767399,0.26190084,103940.0,103930.0,1.09469164]
[1747024767614,0.06948214,103940.0,103930.0,1.10431285]
[1747024768847,0.06948196,103940.0,103930.0,1.10431285]
[1747024769289,0.26190066,103940.0,103930.0,1.08507025]
[1747024769507,0.2619014,103940.0,103930.0,1.09469164]
[1747024769713,0.2619014,103940.0,103930.0,1.14272295]
[1747024770105,0.0694827,103940.0,103930.0,1.14272295]
[1747024770566,0.0694827,103940.0,103930.0,1.14272249]
[1747024771803,0.0694827,103940.0,103930.0,1.13310128]
[1747024772028,0.0694827,103940.0,103930.0,1.14272249]
[1747024772278,0.05986177,103940.0,103930.0,1.14272249]
[1747024773829,0.05986177,103940.0,103930.0,1.54272249]
[1747024774274,0.06948261,103940.0,103930.0,1.54272249]
[1747024774419,0.06948261,103940.0,103930.0,1.20272249]
[1747024774616,0.07910354,103940.0,103930.0,1.19310128]
[1747024774837,0.24266047,103940.0,103930.0,0.58872238]
[1747024775038,0.24266047,103940.0,103930.0,0.60796544]
[1747024775467,0.24266047,103940.0,103930.0,1.01758674]
[1747024778176,0.0502414,103940.0,103930.0,1.02720795]
[1747024779900,0.0502414,103940.0,103930.0,1.22155053]
[1747024780141,0.0502414,103940.0,103930.0,1.36720795]
[1747024781515,0.2426601,103940.0,103930.0,1.34796544]
[1747024781955,0.25228103,103940.0,103930.0,1.35758674]
[1747024782319,0.33851477,103940.0,103930.0,1.11571201]
[1747024782526,0.33851477,103940.0,103930.0,0.69537901]
[1747024782736,0.33851477,103940.0,103930.0,0.84103643]
[1747024783165,0.33851477,103940.0,103930.0,0.69537901]
[1747024783386,0.33851477,103940.0,103930.0,0.37841001]
[1747024783794,0.34251477,103940.0,103930.0,0.38245242]
[1747024787212,0.34251477,103940.0,103930.0,0.52810984]
[1747024787672,0.34251477,103940.0,103930.0,0.38245242]
[1747024791385,0.34251477,103940.0,103930.0,0.224421]
[1747024791600,0.35705562,103940.0,103930.0,0.00404241]
[1747024792033,0.23395897,103930.0,103920.0,0.01924547]
[1747024792159,0.32981327,103930.0,103920.0,0.36745347]
[1747024792363,0.32981327,103930.0,103920.0,0.40638297]
[1747024792564,0.32981327,103930.0,103920.0,0.55204039]
[1747024793261,0.32981327,103930.0,103920.0,0.3632277]
[1747024793465,0.32981327,103930.0,103920.0,0.7032277]
[1747024793668,0.32981327,103930.0,103920.0,0.6732277]
[1747024795291,0.32924949,103930.0,103920.0,0.6732277]
[1747024795496,0.32924949,103930.0,103920.0,0.67810807]
[1747024796254,0.32924949,103930.0,103920.0,0.74546748]
[1747024797752,0.32924949,103930.0,103920.0,0.66848529]
[1747024797950,0.32924949,103930.0,103920.0,0.67810807]
[1747024798384,0.32924949,103930.0,103920.0,0.68773076]
[1747024800572,0.32924949,103930.0,103920.0,0.73869708]
[1747024801197,0.32924949,103930.0,103920.0,0.72907448]
[1747024802273,0.32924949,103930.0,103920.0,0.73869708]
[1747024803122,0.32924949,103930.0,103920.0,0.71945179]
[1747024803550,0.32924949,103930.0,103920.0,0.72907448]
[1747024804060,0.32924949,103930.0,103920.0,0.73869708]
[1747024804982,0.32924949,103930.0,103920.0,0.71945179]
[1747024805448,0.32924949,103930.0,103920.0,0.04380987]
[1747024805674,0.32924949,103930.0,103920.0,0.00488037]
[1747024805675,0.5324717,103930.0,103920.0,0.00488037]
[1747024806100,0.24300083,103920.0,103910.0,0.38945847]
[1747024806247,0.33885513,103920.0,103910.0,0.52553394]
[1747024806451,0.33885513,103920.0,103910.0,0.67119136]
[1747024806693,0.33885513,103920.0,103910.0,0.73855725]
[1747024807493,0.33885513,103920.0,103910.0,0.52553394]
[1747024807703,0.33885513,103920.0,103910.0,0.68081498]
[1747024808198,0.34085513,103920.0,103910.0,0.68081498]
[1747024808856,0.34285513,103920.0,103910.0,0.74818077]
[1747024809166,0.34285513,103920.0,103910.0,0.73855725]
[1747024809530,0.34285513,103920.0,103910.0,0.74351693]
[1747024810437,0.34285513,103920.0,103910.0,0.75314027]
[1747024810746,0.35247782,103920.0,103910.0,0.76276388]
[1747024810970,0.35247782,103920.0,103910.0,0.74351693]
[1747024811150,0.33323272,103920.0,103910.0,0.66652733]
[1747024811435,0.33323272,103920.0,103910.0,0.67615104]
[1747024811654,0.33323272,103920.0,103910.0,0.74351693]
[1747024812590,0.33323272,103920.0,103910.0,0.66652733]
[1747024812838,0.33323272,103920.0,103910.0,0.38484291]
[1747024824166,0.33323272,103920.0,103910.0,0.38824291]
[1747024837182,0.46021357,103920.0,103910.0,0.00840815]
[1747024837410,0.75152841,103920.0,103910.0,0.00840815]
[1747024837606,0.60587099,103920.0,103910.0,0.00840815]
[1747024838009,0.61261975,103920.0,103910.0,0.00840815]
[1747024838234,0.61061975,103920.0,103910.0,0.00840815]
[1747024838575,0.61461975,103920.0,103910.0,0.00840815]
[1747024839179,0.61261975,103920.0,103910.0,0.00840815]
[1747024839604,0.61561975,103920.0,103910.0,0.00840815]
[1747024842787,0.86084458,103920.0,103910.0,0.00840815]
[1747024843203,0.87084458,103920.0,103910.0,0.00344847]
[1747024843576,0.87084458,103920.0,103870.0,0.42116222]
[1747024843577,0.22140791,103880.0,103870.0,0.42116222]
[1747024843807,0.32688842,103880.0,103870.0,1.87990207]
[1747024844006,0.32688842,103880.0,103870.0,1.13954453]
[1747024844213,0.31726277,103880.0,103870.0,0.76929762]
[1747024844430,0.31726277,103880.0,103870.0,0.6236402]
[1747024844631,0.31726277,103880.0,103870.0,0.77129771]
[1747024844837,0.31731115,103880.0,103870.0,0.81039521]
[1747024845644,0.31731115,103880.0,103870.0,0.82002244]
[1747024845857,0.31731115,103880.0,103870.0,0.81239521]
[1747024846314,0.31731115,103880.0,103870.0,0.73537604]
[1747024846544,0.31731115,103880.0,103870.0,0.72950345]
[1747024846743,0.31731115,103880.0,103870.0,0.73913077]
[1747024846952,0.31731115,103880.0,103870.0,0.72950345]
[1747024847521,0.31731115,103880.0,103870.0,0.73913077]
[1747024848397,0.31731115,103880.0,103870.0,0.79689528]
[1747024848716,0.31731115,103880.0,103870.0,0.81339528]
[1747024849555,0.31731115,103880.0,103870.0,0.82302251]
[1747024850159,0.31731115,103880.0,103870.0,0.83264955]
[1747024850365,0.00967403,103880.0,103870.0,0.98793347]
[1747024850595,0.02892608,103880.0,103870.0,0.84227605]
[1747024850758,0.01929996,103880.0,103870.0,0.84227605]
[1747024851158,0.02892617,103880.0,103870.0,0.84227605]
[1747024851551,0.02892608,103880.0,103870.0,0.84227605]
[1747024851755,0.01929996,103880.0,103870.0,0.84227605]
[1747024851974,0.02892617,103880.0,103870.0,0.84227605]
[1747024852198,0.01929996,103880.0,103870.0,0.84227605]
[1747024852636,0.02892598,103880.0,103870.0,0.84227605]
[1747024852782,0.03855219,103880.0,103870.0,0.84227605]
[1747024853195,0.04817849,103880.0,103870.0,0.84227605]
[1747024853659,0.03855219,103880.0,103870.0,0.84227605]
[1747024856644,0.04817849,103880.0,103870.0,0.84227605]
[1747024856999,0.03855219,103880.0,103870.0,0.84227605]
[1747024858030,0.24070833,103880.0,103870.0,0.84227614]
[1747024858227,0.24070833,103880.0,103870.0,0.82577614]
[1747024858442,0.03855219,103880.0,103870.0,0.82577559]
[1747024858854,0.03855219,103880.0,103870.0,0.84097559]
[1747024859986,0.02892598,103880.0,103870.0,0.84097559]
[1747024860645,0.00967403,103880.0,103870.0,0.84097559]
[1747024860860,4.838e-05,103880.0,103870.0,0.98663301]
[1747024861514,0.00967403,103880.0,103870.0,0.98663301]
[1747024861963,0.00967403,103880.0,103870.0,1.38663301]
[1747024862355,4.838e-05,103880.0,103870.0,1.38663301]
[1747024864316,0.00967413,103880.0,103870.0,1.38663301]
[1747024864585,0.00967403,103880.0,103870.0,1.38663301]
[1747024864805,0.04392297,103910.0,103900.0,0.42662062]
[1747024865028,0.01167141,103910.0,103900.0,2.32855946]
[1747024865252,0.32227081,103910.0,103900.0,0.80800647]
[1747024865482,0.41812511,103910.0,103900.0,0.34437805]
[1747024865924,0.42012511,103910.0,103900.0,0.34437805]
[1747024866144,0.42012511,103910.0,103900.0,0.34]
[1747024867596,0.42112511,103910.0,103900.0,0.34]
[1747024868784,0.34492375,103910.0,103900.0,0.34435733]
[1747024871599,0.34492375,103910.0,103900.0,0.3459434]
[1747024880349,0.34492375,103910.0,103900.0,0.49160082]
[1747024883881,0.34492375,103910.0,103900.0,0.3459434]
[1747024884908,0.34492375,103910.0,103900.0,0.49160082]
[1747024885120,0.45716375,103910.0,103900.0,0.49160082]
[1747024885331,0.31262375,103910.0,103900.0,0.70463061]
[1747024885546,0.31262375,103910.0,103900.0,0.92739861]
[1747024885990,0.30300051,103910.0,103900.0,0.93702306]
[1747024886229,0.30300051,103910.0,103900.0,0.94664742]
[1747024886639,0.30300051,103910.0,103900.0,0.93702306]
[1747024886839,0.30300051,103910.0,103900.0,0.98747131]
[1747024886840,0.03391817,103910.0,103900.0,0.98747131]
[1747024888293,0.03391817,103910.0,103900.0,0.97127131]
[1747024888496,0.04354179,103910.0,103900.0,0.97127131]
[1747024888880,0.0531655,103910.0,103900.0,0.97127131]
[1747024889912,0.0531655,103910.0,103900.0,0.95627131]
[1747024890368,0.04354179,103910.0,103900.0,0.95627131]
[1747024891465,0.04354179,103910.0,103900.0,1.35627131]
[1747024892687,0.00504844,103910.0,103900.0,0.98787131]
[1747024893365,0.00504844,103910.0,103900.0,1.38787131]
[1747024893862,0.00504844,103910.0,103900.0,1.53352873]
[1747024894101,0.3080189,103930.0,103920.0,0.08660395]
[1747024894102,0.03760792,103930.0,103920.0,0.08660395]
[1747024894332,0.02798643,103930.0,103920.0,2.23108979]
[1747024894555,0.04722949,103930.0,103920.0,2.23662015]
[1747024894747,0.04048538,103930.0,103920.0,2.23662015]
[1747024894980,0.05010714,103930.0,103920.0,1.73209415]
[1747024895198,0.05010714,103930.0,103920.0,1.50682915]
[1747024895647,0.05010714,103930.0,103920.0,1.47956015]
[1747024895837,0.05010798,103930.0,103920.0,1.47956015]
[1747024896189,0.05010798,103930.0,103920.0,1.46878715]
[1747024897061,0.23292389,103930.0,103920.0,1.15039002]
[1747024897266,0.24488083,103930.0,103920.0,0.3205101]
[1747024897503,0.34073513,103930.0,103920.0,0.25315078]
[1747024897732,0.34073513,103930.0,103920.0,0.26648078]
[1747024898928,0.34073513,103930.0,103920.0,0.31498254]
[1747024899132,0.34073513,103930.0,103920.0,0.37271926]
[1747024899350,0.33111337,103930.0,103920.0,0.37271926]
[1747024901757,0.33111337,103930.0,103920.0,0.27706192]
[1747024901998,0.33111337,103930.0,103920.0,0.29218872]
[1747024902230,0.03086353,103930.0,103920.0,2.69750416]
[1747024902459,0.0404852,103930.0,103920.0,2.68120416]
[1747024902957,0.0404852,103930.0,103920.0,1.90852616]
[1747024904373,0.05010696,103930.0,103920.0,1.75764816]
[1747024904619,0.05010696,103930.0,103920.0,1.15822716]